bitfinex-derivatives/quotes_BNBF0:USTF0_20250523
["timestamp","ask_amount","ask_price","bid_price","bid_amount"]
[1748002600299,1.03562158,664.45,662.92,0.30169552]
[1748002602700,1.03678593,664.23,662.92,0.30169552]
[1748002603998,1.03562158,664.22,662.92,0.30169552]
[1748002605803,1.03678593,664.17,662.92,0.30169552]
[1748002607397,1.03562158,664.16,662.92,0.30169552]
[1748002608805,1.03562158,664.15,662.92,0.30169552]
[1748002610404,1.03562158,664.14,662.92,0.30169552]
[1748002612104,1.03562158,664.2,662.92,0.30169552]
[1748002613801,0.907,664.21,662.92,0.30169552]
[1748002626521,0.907,664.21,662.79,0.26204425]
[1748002640025,0.907,664.21,663.01,3.19203491]
[1748002642928,0.64532521,664.21,663.01,3.19203491]
[1748002645926,0.38372025,664.21,663.03,0.30164547]
[1748002656038,0.08700701,664.21,663.03,0.30164547]
[1748002656434,0.00782371,664.21,663.03,0.30164547]
[1748002657439,0.00782371,664.21,663.47,0.47444981]
[1748002657637,0.00782371,664.21,663.48,0.30144088]
[1748002659941,0.00184095,664.21,663.48,0.30144088]
[1748002661441,0.26124459,667.29,663.48,0.30144088]
[1748002663045,0.26124459,667.29,663.97,0.47444981]
[1748002664045,0.26124459,667.29,664.13,0.30114585]
[1748002667448,1.068,667.28,664.13,0.30114585]
[1748002669549,1.05696448,667.27,664.13,0.30114585]
[1748002670951,1.05696448,667.26,664.13,0.30114585]
[1748002672047,0.53562011,667.25,664.13,0.30114585]
[1748002672251,0.53562011,667.24,664.13,0.30114585]
[1748002672451,0.53562011,667.23,664.13,0.30114585]
[1748002672647,1.03678593,667.07,664.13,0.30114585]
[1748002672852,2.47899974,667.06,664.13,0.30114585]
[1748002673053,0.53562011,667.05,664.13,0.30114585]
[1748002673357,1.94488621,667.04,664.13,0.30114585]
[1748002673553,0.53562011,667.03,664.13,0.30114585]
[1748002673852,0.90779955,667.02,664.13,0.30114585]
[1748002674053,0.53562011,667.01,664.13,0.30114585]
[1748002674249,1.05696448,667.0,664.13,0.30114585]
[1748002674450,1.57402101,666.99,664.13,0.30114585]
[1748002674655,1.57402101,666.98,664.13,0.30114585]
[1748002674854,2.48182056,666.97,664.13,0.30114585]
[1748002675062,1.57398354,666.96,664.13,0.30114585]
[1748002675257,1.57398354,666.95,664.13,0.30114585]
[1748002675458,1.03678593,666.86,664.13,0.30114585]
[1748002675758,0.53562011,666.85,664.13,0.30114585]
[1748002675959,0.90779955,666.84,664.13,0.30114585]
[1748002676159,0.53562011,666.83,664.13,0.30114585]
[1748002676362,0.53894175,666.82,664.13,0.30114585]
[1748002676559,1.4467413,666.81,664.13,0.30114585]
[1748002676761,0.53894175,666.8,664.13,0.30114585]
[1748002676960,0.90779955,666.79,664.13,0.30114585]
[1748002677160,0.53902705,666.78,664.13,0.30114585]
[1748002677360,1.4468266,666.77,664.13,0.30114585]
[1748002677660,2.48823254,666.76,664.13,0.30114585]
[1748002677956,2.48823254,666.75,664.13,0.30114585]
[1748002678161,1.58043299,666.74,664.13,0.30114585]
[1748002678460,2.48823254,666.73,664.13,0.30114585]
[1748002678661,1.03678593,666.62,664.13,0.30114585]
[1748002678959,1.58043299,666.61,664.13,0.30114585]
[1748002679156,1.58043299,666.6,664.13,0.30114585]
[1748002679459,1.58043299,666.59,664.13,0.30114585]
[1748002679660,1.58043299,666.58,664.13,0.30114585]
[1748002679961,3.54839917,666.57,664.13,0.30114585]
[1748002680154,1.58363514,666.56,664.13,0.30114585]
[1748002680353,1.58363514,666.55,664.13,0.30114585]
[1748002680556,2.49143469,666.54,664.13,0.30114585]
[1748002680755,0.54046702,666.53,664.13,0.30114585]
[1748002680961,0.90779955,666.54,664.13,0.30114585]
[1748002681270,1.05696448,666.57,664.13,0.30114585]
[1748002681557,1.05696448,666.52,664.13,0.30114585]
[1748002682763,1.05696448,666.51,664.13,0.30114585]
[1748002684762,1.03678593,666.75,664.13,0.30114585]
[1748002686665,1.03678593,666.75,664.41,0.47444981]
[1748002686865,1.03678593,666.75,664.52,0.30096912]
[1748002687067,1.05696448,666.74,664.52,0.30096912]
[1748002688865,1.05696448,666.73,664.52,0.30096912]
[1748002691462,1.05696448,666.87,664.52,0.30096912]
[1748002692965,1.05696448,667.08,664.52,0.30096912]
[1748002693168,1.59135349,667.07,664.52,0.30096912]
[1748002693368,1.59133177,667.06,664.52,0.30096912]
[1748002693669,1.59211484,667.05,664.52,0.30096912]
[1748002693870,1.59211484,667.04,664.52,0.30096912]
[1748002694165,2.50835046,667.03,664.52,0.30096912]
[1748002694368,2.50835046,667.02,664.52,0.30096912]
[1748002694570,1.59211484,667.01,664.52,0.30096912]
[1748002694771,1.59211484,667.0,664.52,0.30096912]
[1748002694979,1.59211484,666.99,664.52,0.30096912]
[1748002695276,1.59211484,666.98,664.52,0.30096912]
[1748002695569,2.50835046,666.97,664.52,0.30096912]
[1748002695770,2.50835046,666.96,664.52,0.30096912]
[1748002695969,1.59211484,666.95,664.52,0.30096912]
[1748002696167,2.50835046,666.94,664.52,0.30096912]
[1748002696368,1.59211484,666.93,664.52,0.30096912]
[1748002696667,1.59211484,666.92,664.52,0.30096912]
[1748002696870,2.50835046,666.91,664.52,0.30096912]
[1748002697171,2.50835046,666.9,664.52,0.30096912]
[1748002697366,2.50835046,666.89,664.52,0.30096912]
[1748002697571,1.59211484,666.88,664.52,0.30096912]
[1748002697869,2.50835046,666.87,664.52,0.30096912]
[1748002698070,1.03678593,666.85,664.52,0.30096912]
[1748002698269,2.50835046,666.84,664.52,0.30096912]
[1748002698471,1.59211484,666.83,664.52,0.30096912]
[1748002698671,1.59211484,666.82,664.52,0.30096912]
[1748002698875,2.50835046,666.81,664.52,0.30096912]
[1748002699074,1.59211484,666.8,664.52,0.30096912]
[1748002699374,2.50835046,666.79,664.52,0.30096912]
[1748002699575,1.59211484,666.78,664.52,0.30096912]
[1748002699775,2.65692752,666.77,664.52,0.30096912]
[1748002699975,1.59996304,666.76,664.52,0.30096912]
[1748002700169,1.59996304,666.75,664.52,0.30096912]
[1748002700371,1.59996304,666.74,664.52,0.30096912]
[1748002700569,1.59996304,666.73,664.52,0.30096912]
[1748002700771,1.59996304,666.72,664.52,0.30096912]
[1748002701076,2.51619866,666.71,664.52,0.30096912]
[1748002701277,1.59996304,666.7,664.52,0.30096912]
[1748002701472,2.51636134,666.69,664.52,0.30096912]
[1748002701675,1.60012172,666.68,664.52,0.30096912]
[1748002701877,0.91623562,666.67,664.79,4.51710513]
[1748002702072,0.91623562,666.67,664.81,0.30083783]
[1748002702271,1.05696448,666.68,664.81,0.30083783]
[1748002704179,1.03678593,666.8,664.81,0.30083783]
[1748002705878,1.03317389,667.02,664.81,0.30083783]
[1748002706076,2.52851469,667.01,664.81,0.30083783]
[1748002706277,1.60394323,667.0,664.81,0.30083783]
[1748002706477,1.03317389,667.02,664.81,0.30083783]
[1748002706478,2.52851469,666.99,664.81,0.30083783]
[1748002706679,1.60380198,666.98,664.81,0.30083783]
[1748002706874,2.52837344,666.97,664.81,0.30083783]
[1748002707079,1.60380198,666.96,664.81,0.30083783]
[1748002707279,1.60380198,666.95,664.81,0.30083783]
[1748002707476,2.52837344,666.94,664.81,0.30083783]
[1748002707679,0.92457146,666.94,664.81,0.30083783]
[1748002707982,1.03317389,666.95,664.81,0.30083783]
[1748002708582,1.03678593,667.15,664.81,0.30083783]
[1748002708782,1.60444542,667.14,664.81,0.30083783]
[1748002709080,1.60444542,667.13,664.81,0.30083783]
[1748002709283,2.53070352,667.12,664.81,0.30083783]
[1748002709480,1.60444542,667.11,664.81,0.30083783]
[1748002709680,2.53070352,667.1,664.81,0.30083783]
[1748002709877,1.60444542,667.09,664.81,0.30083783]
[1748002710081,1.60495195,667.08,664.81,0.30083783]
[1748002710383,2.53121005,667.07,664.81,0.30083783]
[1748002710583,1.60495195,667.06,664.81,0.30083783]
[1748002710781,2.53121005,667.05,664.81,0.30083783]
[1748002710984,0.54713105,667.04,664.93,0.47444981]
[1748002711283,0.9262581,667.03,665.03,0.30073831]
[1748002711684,0.9262581,667.02,665.03,0.30073831]
[1748002711986,1.47352496,667.01,665.03,0.30073831]
[1748002712180,1.05809259,667.0,665.03,0.30073831]
[1748002712382,2.53159819,666.99,665.03,0.30073831]
[1748002712583,1.60534009,666.98,665.03,0.30073831]
[1748002712882,1.60534009,666.97,665.03,0.30073831]
[1748002713181,2.53159819,666.96,665.03,0.30073831]
[1748002713379,2.53159819,666.95,665.03,0.30073831]
[1748002713678,0.9262581,666.95,665.03,0.30073831]
[1748002713881,1.03317389,666.94,665.03,0.30073831]
[1748002715685,1.03678593,667.32,665.32,3.19203491]
[1748002715882,2.52988491,667.31,665.32,3.19203491]
[1748002716081,1.60479027,667.3,665.32,3.19203491]
[1748002716284,1.60479027,667.29,665.34,0.30059819]
[1748002716486,1.60479027,667.28,665.34,0.30059819]
[1748002716687,2.52988491,667.27,665.34,0.30059819]
[1748002716887,1.60463263,667.26,665.34,0.30059819]
[1748002717087,2.52972727,667.25,665.34,0.30059819]
[1748002717281,1.60463263,667.24,665.34,0.30059819]
[1748002717483,2.52972727,667.23,665.34,0.30059819]
[1748002717685,1.60463263,667.22,665.34,0.30059819]
[1748002717887,2.52972727,667.21,665.34,0.30059819]
[1748002718085,2.52972727,667.2,665.34,0.30059819]
[1748002718284,1.60463263,667.19,665.34,0.30059819]
[1748002718483,1.60463263,667.18,665.34,0.30059819]
[1748002718685,1.60394775,667.17,665.34,0.30059819]
[1748002718882,1.60394775,667.16,665.34,0.30059819]
[1748002719087,1.60394775,667.15,665.34,0.30059819]
[1748002719387,1.47203141,667.14,665.34,0.30059819]
[1748002719691,0.92509464,667.13,665.34,0.30059819]
[1748002720089,1.03317389,667.12,665.34,0.30059819]
[1748002721593,1.03317389,667.28,665.34,0.30059819]
[1748002721889,2.52690344,667.27,665.34,0.30059819]
[1748002722094,0.92399519,667.27,665.34,0.30059819]
[1748002722495,1.03317389,667.28,665.34,0.30059819]
[1748002722690,1.245,667.29,665.34,0.30059819]
[1748002723596,0.54570358,667.28,665.34,0.30059819]
[1748002723793,1.46605414,667.27,665.34,0.30059819]
[1748002723990,0.92030686,667.27,665.34,0.30059819]
[1748002724189,0.92030686,667.26,665.34,0.30059819]
[1748002724594,1.245,667.29,665.34,0.30059819]
[1748002725296,1.03276214,667.25,665.34,0.30059819]
[1748002726501,1.245,667.29,665.34,0.30059819]
[1748002726791,1.245,667.29,665.32,3.19203491]
[1748002733092,1.245,667.29,665.69,3.19203491]
[1748002751612,1.245,667.29,665.35,3.19203491]
[1748002751808,1.245,667.29,665.71,0.30043111]
[1748002756415,1.55891901,667.28,665.71,0.30043111]
[1748002756613,2.45211463,667.27,665.71,0.30043111]
[1748002756815,2.45211463,667.26,665.71,0.30043111]
[1748002757016,1.55891901,667.25,665.71,0.30043111]
[1748002757216,1.56933836,667.24,665.71,0.30043111]
[1748002757518,1.03678593,667.23,665.71,0.30043111]
[1748002758320,1.03424678,667.22,665.71,0.30043111]
[1748002758517,1.53514595,667.21,665.71,0.30043111]
[1748002758716,1.03424678,667.2,665.71,0.30043111]
[1748002758914,0.89452267,667.19,665.71,0.30043111]
[1748002759216,1.01366026,667.21,665.71,0.30043111]
[1748002759417,1.51984336,667.2,665.73,0.30042209]
[1748002759619,1.51984336,667.19,665.73,0.0387778]
[1748002759817,1.51984336,667.18,665.73,0.0387778]
[1748002760116,1.51984336,667.17,665.73,0.0387778]
[1748002760318,2.40281827,667.16,665.73,0.0387778]
[1748002760618,1.51290031,667.15,665.73,0.0387778]
[1748002760813,1.51290031,667.14,663.42,0.47444981]
[1748002761010,1.51290031,667.13,665.75,0.30041306]
[1748002761214,2.39587522,667.12,665.77,0.30040404]
[1748002761412,2.39587522,667.11,665.79,0.30039501]
[1748002761711,0.49579865,667.1,665.81,0.30038599]
[1748002761912,0.49579865,667.09,665.81,0.30038599]
[1748002762112,0.49579865,667.08,665.81,0.30038599]
[1748002762418,0.40620018,667.07,665.81,0.30038599]
[1748002762613,0.26218837,666.77,665.81,0.30038599]
[1748002762814,1.41986044,666.76,660.16,0.84033509]
[1748002763014,1.01366026,666.76,660.16,0.84033509]
[1748002763219,0.30010653,666.43,660.49,0.30280549]
[1748002763819,0.30010653,666.43,660.16,0.84033509]
[1748002764022,0.30010653,666.43,660.46,0.30281924]
[1748002765522,1.00750153,664.14,660.46,0.30281924]
[1748002765821,0.30120935,663.99,660.46,0.30281924]
[1748002772628,0.95238548,663.98,660.46,0.30281924]
[1748002772828,0.30122296,663.96,660.46,0.30281924]
[1748002791742,1.00750153,667.72,660.46,0.30281924]
[1748002792042,0.30009302,666.46,660.46,0.30281924]
[1748002801151,0.30009302,666.46,661.95,0.26226049]
[1748002801352,0.30009302,666.46,662.17,0.30203724]
[1748002808464,0.831,666.45,662.17,0.30203724]
[1748002808656,0.30019212,666.24,662.17,0.30203724]
[1748002811766,0.98193181,666.23,662.17,0.30203724]
[1748002812870,0.30028677,666.03,662.17,0.30203724]
[1748002813372,0.98193181,666.02,662.17,0.30203724]
[1748002813566,0.30037697,665.83,662.17,0.30203724]
[1748002815273,0.98193181,665.82,662.17,0.30203724]
[1748002815973,0.30046271,665.64,662.17,0.30203724]
[1748002816669,0.98193181,665.63,662.17,0.30203724]
[1748002816874,0.30054398,665.46,662.17,0.30203724]
[1748002818475,1.00750153,665.35,662.17,0.30203724]
[1748002819371,0.3006027,665.33,662.17,0.30203724]
[1748002820376,0.98193181,665.32,662.17,0.30203724]
[1748002820571,0.30065241,665.22,662.17,0.30203724]
[1748002821575,1.00750153,665.2,662.17,0.30203724]
[1748002822778,0.30067049,665.18,662.17,0.30203724]
[1748002822979,0.98193181,665.17,662.17,0.30203724]
[1748002823179,0.30068405,665.15,662.17,0.30203724]
[1748002824380,0.98193181,665.14,662.17,0.30203724]
[1748002824582,0.30069761,665.12,662.17,0.30203724]
[1748002825080,0.98193181,665.11,662.17,0.30203724]
[1748002825281,0.30071118,665.09,662.17,0.30203724]
[1748002826583,1.00750153,665.04,662.17,0.30203724]
[1748002826783,0.30074283,665.02,662.17,0.30203724]
[1748002827484,0.98193181,665.01,662.17,0.30203724]
[1748002827879,0.30075187,665.0,662.17,0.30203724]
[1748002828883,1.00750153,664.84,662.17,0.30203724]
[1748002829086,0.30082878,664.83,662.17,0.30203724]
[1748002830086,0.98193181,664.82,662.17,0.30203724]
[1748002830286,0.30083783,664.81,662.17,0.30203724]
[1748002831487,1.00750153,664.31,662.17,0.30203724]
[1748002834893,1.00750153,664.78,662.17,0.30203724]
[1748002836291,0.98193181,664.77,662.17,0.30203724]
[1748002837693,0.98193181,664.77,661.73,0.26222788]
[1748002838093,1.00750153,664.47,661.73,0.26222788]
[1748002839392,0.98193181,664.46,661.73,0.26222788]
[1748002840992,1.00750153,664.4,661.73,0.26222788]
[1748002843796,1.00750153,664.5,661.73,0.26222788]
[1748002846497,1.00750153,664.62,662.58,3.0894496]
[1748002848898,1.00750153,664.54,662.16,3.0894496]
[1748002849398,1.22,664.53,662.16,3.0894496]
[1748002849896,0.98193181,664.52,662.16,3.0894496]
[1748002853002,0.98193181,664.51,662.16,3.0894496]
[1748002855106,0.98193181,664.5,662.16,3.0894496]
[1748002855903,0.98193181,664.49,662.16,3.0894496]
[1748002857008,0.98193181,664.49,662.27,0.30199163]
[1748002857809,1.00750153,664.44,662.27,0.30199163]
[1748002858911,0.98193181,664.43,662.27,0.30199163]
[1748002860612,0.98193181,664.42,662.27,0.30199163]
[1748002861913,0.98193181,664.41,662.27,0.30199163]
[1748002863713,0.98193181,664.45,662.31,3.0894496]
[1748002863914,0.98193181,664.45,662.41,0.3019278]
[1748002865415,0.98193181,664.44,662.41,0.3019278]
[1748002866612,0.98193181,664.43,662.41,0.3019278]
[1748002868613,0.98193181,664.42,662.41,0.3019278]
[1748002870017,1.00750153,664.21,662.41,0.3019278]
[1748002872818,0.98193181,664.34,662.41,0.3019278]
[1748002874822,1.00750153,664.41,662.41,0.3019278]
[1748002876725,1.231,664.4,662.41,0.3019278]
[1748002878225,0.98193181,664.39,662.41,0.3019278]
[1748002879931,1.98943334,664.38,662.41,0.3019278]
[1748002881628,0.98193181,664.37,662.41,0.3019278]
[1748002883837,0.98193181,664.36,662.41,0.3019278]
[1748002885735,0.98193181,664.35,662.41,0.3019278]
[1748002887335,1.231,664.4,662.41,0.3019278]
[1748002887336,1.00750153,664.09,662.41,0.3019278]
[1748002890640,0.98193181,664.22,662.41,0.3019278]
[1748002891739,0.98193181,664.31,662.41,0.3019278]
[1748002893341,1.00750153,664.32,662.41,0.3019278]
[1748002893535,0.98193181,664.39,662.41,0.3019278]
[1748002894936,0.98193181,664.38,662.41,0.3019278]
[1748002896340,1.00750153,664.31,662.41,0.3019278]
[1748002897743,0.98193181,664.3,662.41,0.3019278]
[1748002898744,0.883,664.29,662.41,0.3019278]
[1748002899044,0.98193181,664.28,662.41,0.3019278]
[1748002901744,0.883,664.29,662.41,0.3019278]
[1748002905849,1.00750153,664.1,662.41,0.3019278]
[1748002906849,1.00235343,664.09,662.41,0.3019278]
[1748002908248,1.00750153,663.91,662.41,0.3019278]
[1748002910855,1.00235343,663.9,662.41,0.3019278]
[1748002912355,1.00750153,663.94,662.41,0.3019278]
[1748002914160,1.00750153,663.95,662.41,0.3019278]
[1748002916865,1.00750153,664.05,662.41,0.3019278]
[1748002919560,0.30118667,664.04,662.41,0.3019278]
[1748002922261,0.883,664.29,662.41,0.3019278]
[1748002928068,1.00750153,664.77,662.41,0.3019278]
[1748002931471,1.00750153,664.6,662.41,0.3019278]
[1748002931770,1.294,664.59,662.41,0.3019278]
[1748002932971,1.00594885,664.58,662.41,0.3019278]
[1748002935572,1.00750153,664.42,662.41,0.3019278]
[1748002937576,1.00594885,664.41,662.41,0.3019278]
[1748002939480,1.00750153,664.11,662.41,0.3019278]
[1748002942678,1.00750153,664.54,662.41,0.3019278]
[1748002942879,0.30096912,664.52,662.41,0.3019278]
[1748002944381,1.00594885,664.51,662.41,0.3019278]
[1748002944679,0.30097817,664.5,662.41,0.3019278]
[1748002946082,0.30097817,664.5,661.54,4.51710513]
[1748002946381,1.294,664.59,661.54,4.51710513]
[1748002947582,0.99515189,664.58,661.54,4.51710513]
[1748002949882,1.294,664.59,661.54,4.51710513]
[1748002952687,0.99402804,664.58,661.54,4.51710513]
[1748002953188,0.99402804,664.58,661.88,0.26212517]
[1748002954386,0.99402804,664.57,661.88,0.26212517]
[1748002955891,0.99402804,664.58,662.16,3.0894496]
[1748002957588,1.294,664.59,662.16,3.0894496]
[1748002972099,1.294,664.59,662.71,3.0894496]
[1748002975505,1.294,664.59,662.74,4.51710513]
[1748002978305,1.294,664.59,662.76,0.30176836]
[1748002981807,1.00750153,665.41,662.76,0.30176836]
[1748002982204,1.00750153,665.31,662.76,0.30176836]
[1748002985608,1.00750153,665.25,662.76,0.30176836]
[1748002988916,1.00750153,665.19,662.76,0.30176836]
[1748002992516,1.00750153,665.13,662.76,0.30176836]
[1748002996118,1.34333538,665.28,662.76,0.30176836]
[1748002996119,1.00750153,665.16,662.76,0.30176836]
[1748002997923,0.99069814,665.15,662.76,0.30176836]
[1748002999524,0.99069814,665.14,662.76,0.30176836]
[1748002999822,1.00750153,665.11,662.76,0.30176836]
[1748003002724,0.99069814,665.27,662.76,0.30176836]
[1748003004425,0.99069814,665.29,662.76,0.30176836]
[1748003006932,0.99069814,665.29,663.47,3.0894496]
[1748003007235,0.99069814,665.29,663.49,0.30143634]
[1748003008232,0.99069814,665.28,663.49,0.30143634]
[1748003010039,1.00750153,665.08,663.49,0.30143634]
[1748003012740,0.99069814,665.29,663.49,0.30143634]
[1748003016942,1.313,665.3,663.49,0.30143634]
[1748003020146,1.00750153,665.13,663.49,0.30143634]
[1748003021545,0.98377641,665.12,663.49,0.30143634]
[1748003022546,0.30070213,665.11,663.49,0.30143634]
[1748003022847,0.98377641,665.12,663.49,0.30143634]
[1748003023152,1.00750153,665.01,663.49,0.30143634]
[1748003027158,1.00750153,665.17,663.49,0.30143634]
[1748003027459,0.30067953,665.16,663.49,0.30143634]
[1748003028760,0.98377641,665.15,663.49,0.30143634]
[1748003028962,0.30068857,665.14,663.49,0.30143634]
[1748003029556,1.23,665.13,663.49,0.30143634]
[1748003029760,0.30069761,665.12,663.49,0.30143634]
[1748003030356,1.99127794,665.11,663.49,0.30143634]
[1748003031862,0.98377641,665.1,663.49,0.30143634]
[1748003034061,1.00750153,664.73,663.49,0.30143634]
[1748003035265,0.98377641,664.72,663.49,0.30143634]
[1748003036465,0.30088309,664.71,663.49,0.30143634]
[1748003037063,1.00750153,664.57,663.49,0.30143634]
[1748003039668,1.99127794,664.7,663.49,0.30143634]
[1748003039967,0.30089214,664.69,663.49,0.30143634]
[1748003041063,0.98377641,664.68,663.49,0.30143634]
[1748003042766,1.00750153,664.62,663.49,0.30143634]
[1748003044066,0.98377641,664.61,663.49,0.30143634]
[1748003046667,1.00750153,664.36,663.49,0.30143634]
[1748003048766,1.00750153,664.36,661.88,0.26212517]
[1748003048970,1.00750153,664.36,662.0,0.3021148]
[1748003050570,1.00750153,664.42,662.0,0.3021148]
[1748003052170,0.98377641,664.41,662.0,0.3021148]
[1748003053773,1.00750153,664.28,662.0,0.3021148]
[1748003057275,0.30108239,664.27,662.0,0.3021148]
[1748003062080,1.00750153,664.74,662.0,0.3021148]
[1748003064482,1.00750153,664.86,662.0,0.3021148]
[1748003064682,0.30081973,664.85,662.0,0.3021148]
[1748003065881,0.97804726,664.84,662.0,0.3021148]
[1748003074386,1.00750153,664.71,662.0,0.3021148]
[1748003077190,1.00750153,664.64,662.36,3.0894496]
[1748003080789,1.00750153,664.89,662.36,3.0894496]
[1748003083691,1.00750153,665.08,662.36,3.0894496]
[1748003085998,0.97804726,665.12,662.36,3.0894496]
[1748003088794,1.00750153,665.05,662.78,3.0894496]
[1748003089598,0.97804726,665.04,662.78,3.0894496]
[1748003090900,1.00750153,664.73,662.81,3.0894496]
[1748003092603,2.01500307,664.97,662.81,3.0894496]
[1748003092904,1.393,665.03,661.88,0.26212517]
[1748003098104,1.393,665.03,661.8,0.26298587]
[1748003098610,1.393,665.03,661.83,0.26297196]
[1748003099209,1.393,665.03,661.84,0.26297196]
[1748003099705,1.393,665.03,661.87,0.26296004]
[1748003099908,0.3008152,664.86,661.87,0.26296004]
[1748003100109,0.3008152,664.86,662.01,0.30211024]
[1748003115923,0.3008152,664.86,660.59,0.26254343]
[1748003116123,0.3008152,664.86,660.8,0.30266343]
[1748003134042,1.271,664.85,660.8,0.30266343]
[1748003134245,0.30091025,664.65,660.8,0.30266343]
[1748003152869,1.04658375,664.02,661.14,3.29375027]
[1748003153064,1.04658375,664.02,661.28,0.30244374]
[1748003154368,0.97444715,664.01,661.28,0.30244374]
[1748003155465,1.04658375,663.94,661.28,0.30244374]
[1748003158172,1.04658375,664.17,661.28,0.30244374]
[1748003159770,0.97444715,664.16,661.28,0.30244374]
[1748003160976,1.04658375,663.97,661.28,0.30244374]
[1748003163580,1.04658375,664.09,661.28,0.30244374]
[1748003166182,0.97,664.08,661.28,0.30244374]
[1748003166782,0.97444715,664.07,661.28,0.30244374]
[1748003172377,0.97,664.08,661.28,0.30244374]
[1748003177584,0.97552477,664.07,661.28,0.30244374]
[1748003179483,0.97552477,664.06,661.28,0.30244374]
[1748003180989,0.97,664.08,661.28,0.30244374]
[1748003182994,0.97,664.08,661.63,3.29375027]
[1748003183188,0.97,664.08,661.75,0.30222893]
[1748003188993,0.97,664.08,661.63,3.29375027]
[1748003194799,0.97732222,664.07,661.68,3.29375027]
[1748003196197,0.97,664.08,661.68,3.29375027]
[1748003204204,1.04658375,664.48,661.68,3.29375027]
[1748003206306,1.04658375,664.37,661.68,3.29375027]
[1748003207002,1.056,664.36,661.68,3.29375027]
[1748003207609,0.9832461,664.35,661.68,3.29375027]
[1748003208707,0.9832461,664.35,662.11,3.29375027]
[1748003219808,0.9832461,664.35,662.22,0.30201443]
[1748003220414,1.056,664.36,662.22,0.30201443]
[1748003223114,0.98641718,664.35,662.22,0.30201443]
[1748003224713,0.98641718,664.34,662.54,3.29375027]
[1748003224910,0.98641718,664.34,662.56,0.30185945]
[1748003226918,0.98641718,664.35,662.56,0.30185945]
[1748003233028,0.98641718,664.34,662.56,0.30185945]
[1748003234931,2.03300093,664.35,662.56,0.30185945]
[1748003237832,1.04658375,664.32,662.56,0.30185945]
[1748003239432,0.98641718,664.31,662.56,0.30185945]
[1748003241633,1.04658375,664.18,662.56,0.30185945]
[1748003244035,1.184,664.17,662.56,0.30185945]
[1748003244634,1.04658375,664.14,662.56,0.30185945]
[1748003247229,1.184,664.17,662.56,0.30185945]
[1748003248636,0.993196,664.16,662.56,0.30185945]
[1748003250539,0.993196,664.15,662.56,0.30185945]
[1748003252142,0.993196,664.16,662.56,0.30185945]
[1748003253543,1.04658375,664.14,662.56,0.30185945]
[1748003254643,0.993196,664.13,662.56,0.30185945]
[1748003256643,1.04658375,664.1,662.56,0.30185945]
[1748003257546,0.993196,664.09,662.56,0.30185945]
[1748003259349,1.04658375,663.88,662.56,0.30185945]
[1748003262243,2.03977975,663.87,662.56,0.30185945]
[1748003263649,0.993196,663.86,662.56,0.30185945]
[1748003265353,1.04658375,663.49,662.56,0.30185945]
[1748003267854,1.04658375,663.58,662.56,0.30185945]
[1748003270851,1.04658375,663.72,662.56,0.30185945]
[1748003273558,1.04658375,663.9,662.56,0.30185945]
[1748003274861,0.993196,663.89,662.56,0.30185945]
[1748003276161,1.04658375,663.74,662.56,0.30185945]
[1748003279461,1.04658375,663.71,662.56,0.30185945]
[1748003282365,1.04658375,663.81,662.56,0.30185945]
[1748003285374,0.993196,663.8,662.56,0.30185945]
[1748003286975,0.993196,663.79,662.56,0.30185945]
[1748003288771,2.113196,663.78,662.56,0.30185945]
[1748003290273,0.993196,663.77,662.56,0.30185945]
[1748003292374,0.993196,663.76,662.56,0.30185945]
[1748003293881,0.993196,663.75,662.56,0.30185945]
[1748003296085,0.993196,663.74,662.56,0.30185945]
[1748003297387,1.12,663.78,662.56,0.30185945]
[1748003298983,0.98713147,663.77,662.56,0.30185945]
[1748003300391,1.12,663.78,662.56,0.30185945]
[1748003305695,1.04658375,664.43,662.56,0.30185945]
[1748003308200,1.28,664.42,662.56,0.30185945]
[1748003310003,0.98824163,664.41,662.56,0.30185945]
[1748003311195,1.04658375,664.18,662.56,0.30185945]
[1748003313900,1.04658375,664.24,662.56,0.30185945]
[1748003317302,1.04658375,664.25,662.56,0.30185945]
[1748003318897,0.98824163,664.24,662.56,0.30185945]
[1748003319902,0.98824163,664.24,661.78,3.29375027]
[1748003320702,1.04658375,664.08,661.78,3.29375027]
[1748003320896,1.04658375,664.08,661.86,3.29375027]
[1748003323704,1.04658375,664.03,661.86,3.29375027]
[1748003326107,1.04658375,664.0,661.86,3.29375027]
[1748003327910,0.98824163,663.99,661.86,3.29375027]
[1748003329908,0.98824163,663.99,661.06,0.26224863]
[1748003329909,1.04658375,663.91,661.43,3.29375027]
[1748003333008,0.98824163,664.09,661.43,3.29375027]
[1748003333009,0.98824163,664.08,661.43,3.29375027]
[1748003333910,1.04658375,664.09,661.43,3.29375027]
[1748003335609,1.04658375,664.08,661.43,3.29375027]
[1748003338809,1.04658375,664.13,661.43,3.29375027]
[1748003339709,1.04658375,664.13,661.56,0.30231573]
[1748003342218,1.04658375,664.15,661.56,0.30231573]
[1748003345713,1.04658375,664.17,662.4,3.29375027]
[1748003345912,1.04658375,664.17,662.42,0.30192325]
[1748003349320,1.04658375,664.58,662.42,0.30192325]
[1748003349615,0.30094647,664.57,662.42,0.30192325]